bitfinex/quotes_BTCUSD_20240712
["timestamp","ask_amount","ask_price","bid_price","bid_amount"]
[1720815849874,0.03337954,57373.0,57372.0,0.37761708]
[1720815850535,0.03337954,57373.0,57372.0,0.012097]
[1720815850742,0.03337954,57373.0,57361.0,0.0794]
[1720815850743,0.03327954,57373.0,57361.0,0.0794]
[1720815850949,1.28985,57372.0,57361.0,0.0794]
[1720815851160,0.1,57371.0,57361.0,0.0794]
[1720815851371,0.1,57371.0,57361.0,0.002]
[1720815851372,0.04476924,57370.0,57361.0,0.002]
[1720815851582,0.04476924,57370.0,57352.0,0.06252008]
[1720815851583,0.01066924,57369.0,57352.0,0.06252008]
[1720815851800,0.01066924,57369.0,57351.0,0.02245249]
[1720815851801,0.0049,57354.0,57351.0,0.02245249]
[1720815852024,0.492835,57353.0,57350.0,0.0058184]
[1720815852253,0.1,57352.0,57350.0,0.0058184]
[1720815852468,0.0104656,57352.0,57350.0,0.0058184]
[1720815852705,0.04306386,57353.0,57350.0,0.0058184]
[1720815852706,0.408927,57351.0,57350.0,0.0058184]
[1720815852918,0.7823057,57351.0,57350.0,0.0058184]
[1720815853136,1.0438257,57351.0,57350.0,0.0058184]
[1720815853337,1.1045837,57351.0,57350.0,0.0058184]
[1720815853555,1.0791665,57351.0,57350.0,0.0058184]
[1720815853819,1.0791665,57351.0,57350.0,0.0068184]
[1720815853820,0.1,57351.0,57350.0,0.0068184]
[1720815854026,0.001,57352.0,57350.0,0.0068184]
[1720815854027,0.001,57352.0,57351.0,0.43012008]
[1720815854239,0.1,57368.0,57355.0,0.06252008]
[1720815854462,0.51068611,57364.0,57355.0,0.06252008]
[1720815854676,0.77783141,57374.0,57351.0,0.3676]
[1720815854677,0.01120918,57374.0,57365.0,0.14042008]
[1720815854897,0.14548753,57369.0,57367.0,0.06252008]
[1720815855113,0.14538753,57369.0,57368.0,0.00306353]
[1720815855538,0.14528753,57369.0,57368.0,0.37158361]
[1720815855743,0.14528753,57369.0,57368.0,0.36852008]
[1720815856416,0.01120918,57374.0,57373.0,0.306]
[1720815856644,0.01120918,57374.0,57372.0,0.106]
[1720815856899,0.00083,57387.0,57375.0,0.06]
[1720815857124,4.359482,57386.0,57376.0,0.00206353]
[1720815857374,0.001,57385.0,57377.0,0.0654]
[1720815857793,4.359482,57384.0,57379.0,0.0001]
[1720815857921,0.001,57383.0,57379.0,0.0001]
[1720815858144,4.359482,57382.0,57379.0,0.0001]
[1720815858355,0.024,57381.0,57379.0,0.0001]
[1720815858676,4.359482,57380.0,57379.0,0.0001]
[1720815858914,4.50716665,57380.0,57379.0,0.0001]
[1720815859319,0.04768465,57380.0,57379.0,0.45182008]
[1720815859899,0.04768465,57380.0,57379.0,0.45282008]
[1720815860331,0.04768465,57380.0,57379.0,0.25182008]
[1720815860752,0.04868465,57380.0,57379.0,0.45182008]
[1720815861625,0.001,57380.0,57379.0,0.45182008]
[1720815861829,0.04797561,57380.0,57379.0,0.45182008]
[1720815862251,0.04797657,57380.0,57379.0,0.45182008]
[1720815862471,0.05865908,57380.0,57379.0,0.45182008]
[1720815863699,0.06954161,57380.0,57379.0,0.45182008]
[1720815864103,0.06975204,57380.0,57379.0,0.45182008]
[1720815864307,0.06975204,57380.0,57379.0,0.0001]
[1720815864937,0.01188253,57380.0,57379.0,0.0001]
[1720815865145,0.22787053,57380.0,57379.0,0.0001]
[1720815865362,0.19285339,57380.0,57379.0,0.0001]
[1720815865572,0.31485339,57380.0,57379.0,0.0001]
[1720815865980,0.14908464,57389.0,57379.0,0.0001]
[1720815866181,0.1,57380.0,57379.0,0.0001]
[1720815866807,0.1,57380.0,57379.0,0.3061]
[1720815867173,0.01080031,57389.0,57379.0,0.3061]
[1720815867393,0.2642,57393.0,57379.0,0.3061]
[1720815867394,0.242536,57388.0,57380.0,0.06]
[1720815867619,1.30985,57390.0,57380.0,0.06]
[1720815867834,0.613004,57390.0,57386.0,0.06]
[1720815868051,0.2642,57402.0,57388.0,0.06]
[1720815868052,0.01088744,57391.0,57388.0,0.06]
[1720815868266,0.01088744,57391.0,57386.0,0.0635]
[1720815868267,0.00893647,57389.0,57386.0,0.3695]
[1720815868689,0.00893647,57389.0,57388.0,0.306]
[1720815868901,0.069903,57394.0,57390.0,0.106]
[1720815869117,0.069903,57394.0,57391.0,0.07437797]
[1720815869323,0.17313681,57400.0,57391.0,0.06137797]
[1720815869531,0.818916,57399.0,57391.0,0.06137797]
[1720815869744,0.48225353,57398.0,57392.0,0.106]
[1720815869961,0.482024,57397.0,57393.0,0.00306353]
[1720815870184,0.121124,57396.0,57393.0,0.01489543]
[1720815870390,0.1,57395.0,57393.0,0.00306353]
[1720815870613,0.1,57397.0,57396.0,0.106]
[1720815871032,0.1,57397.0,57396.0,0.11779292]
[1720815871251,0.09967204,57397.0,57396.0,0.31779292]
[1720815871487,0.01077826,57402.0,57401.0,0.35552008]
[1720815871698,0.01077826,57402.0,57401.0,0.57902008]
[1720815871908,0.51068611,57419.0,57418.0,0.106]
[1720815872122,0.51068611,57419.0,57416.0,0.1393]
[1720815872337,0.01085959,57419.0,57417.0,0.01152017]
[1720815872791,0.15372509,57418.0,57416.0,0.1393]
[1720815873249,0.17307751,57421.0,57416.0,0.1393]
[1720815873470,0.15362746,57418.0,57416.0,0.1393]
[1720815873676,0.14862746,57418.0,57417.0,0.00306353]
[1720815873881,0.24294551,57424.0,57417.0,0.00306353]
[1720815874101,1.71856613,57423.0,57417.0,0.00306353]
[1720815874310,0.24272206,57424.0,57416.0,0.1393]
[1720815874311,0.89872819,57422.0,57416.0,0.1393]
[1720815874534,0.20701713,57421.0,57416.0,0.1393]
[1720815874744,0.03989413,57420.0,57416.0,0.1393]
[1720815874953,0.069868,57424.0,57416.0,0.1393]
[1720815875156,0.53353101,57423.0,57416.0,0.1393]
[1720815875373,0.38234801,57422.0,57416.0,0.1393]
[1720815875594,0.31257701,57421.0,57416.0,0.1393]
[1720815875801,0.46178101,57420.0,57416.0,0.1393]
[1720815876019,0.40105601,57419.0,57416.0,0.1393]
[1720815876232,0.03991301,57418.0,57416.0,0.1403]
[1720815876666,0.03991301,57418.0,57416.0,0.1393]
[1720815877092,0.07869394,57426.0,57416.0,0.1393]
[1720815877303,1.15930294,57425.0,57416.0,0.1393]
[1720815877510,0.99764,57424.0,57420.0,0.106]
[1720815877731,0.08511435,57430.0,57416.0,0.1393]
[1720815877732,0.71864,57423.0,57416.0,0.1393]
[1720815878002,0.023,57422.0,57411.0,0.2505]
[1720815878217,0.803531,57422.0,57411.0,0.2505]
[1720815878424,0.260677,57421.0,57415.0,0.106]
[1720815878635,1.784244,57429.0,57414.0,0.35552008]
[1720815878831,1.674868,57428.0,57416.0,0.01153316]
[1720815879059,0.023,57427.0,57414.0,0.35552008]
[1720815879182,1.528389,57427.0,57414.0,0.35552008]
[1720815879380,1.19976,57426.0,57414.0,0.40552209]
[1720815879591,0.25327087,57425.0,57415.0,0.15552008]
[1720815879798,0.361222,57424.0,57415.0,0.06106622]
[1720815880005,0.1,57423.0,57415.0,0.06106622]
[1720815880205,0.339643,57422.0,57415.0,0.06106622]
[1720815880488,0.1,57421.0,57416.0,0.106]
[1720815880772,0.1,57421.0,57415.0,0.26106622]
[1720815880773,0.206259,57420.0,57417.0,0.01152017]
[1720815880989,0.1,57419.0,57418.0,0.15552008]
[1720815881511,0.1,57419.0,57418.0,0.16702727]
[1720815881726,0.1,57419.0,57418.0,0.36702727]
[1720815882058,0.1,57431.0,57420.0,0.106]
[1720815882264,0.525202,57429.0,57420.0,0.15552008]
[1720815882470,0.1,57428.0,57421.0,0.01146824]
[1720815882655,0.506964,57428.0,57421.0,0.01146824]
[1720815882851,0.1,57428.0,57421.0,0.01146824]
[1720815883058,0.451972,57427.0,57421.0,0.01146824]
[1720815883469,0.1,57426.0,57421.0,0.01146824]
[1720815883674,0.08511435,57424.0,57420.0,0.001]
[1720815883883,1.427266,57423.0,57420.0,0.001]
[1720815884087,0.1,57422.0,57421.0,0.01146824]
[1720815884345,0.1,57422.0,57406.0,0.0655]
[1720815884346,0.924229,57422.0,57406.0,0.0655]
[1720815884547,0.08511435,57415.0,57406.0,0.0655]
[1720815884749,1.084983,57414.0,57405.0,0.12762028]
[1720815884954,0.1,57413.0,57405.0,0.12762028]
[1720815885153,0.1,57413.0,57405.0,0.0781002]
[1720815885154,0.91961178,57412.0,57405.0,0.0781002]
[1720815885356,0.08511435,57409.0,57405.0,0.0781002]
[1720815885556,0.08511435,57409.0,57401.0,0.04952008]
[1720815885557,0.71868478,57408.0,57401.0,0.04952008]
[1720815885755,0.1,57410.0,57401.0,0.04952008]
[1720815885756,0.36983378,57407.0,57401.0,0.04952008]
[1720815885977,0.13614478,57406.0,57401.0,0.04952008]
[1720815886179,0.1,57410.0,57401.0,0.04952008]
[1720815886180,0.03614478,57405.0,57401.0,0.04952008]
[1720815886460,0.03614478,57404.0,57401.0,0.04952008]
[1720815886678,0.03614478,57403.0,57401.0,0.04952008]
[1720815886944,0.03614478,57402.0,57401.0,0.04952008]
[1720815887152,0.03614478,57409.0,57401.0,0.04952008]
[1720815887353,0.1,57414.0,57398.0,0.04952008]
[1720815887354,0.08511435,57407.0,57398.0,0.04952008]
[1720815887485,1.0964039,57406.0,57398.0,0.04952008]
[1720815887687,1.1354739,57405.0,57398.0,0.04952008]
[1720815887894,0.18511435,57407.0,57393.0,0.3061]
[1720815887895,0.08511435,57400.0,57393.0,0.0001]
[1720815888121,0.84466642,57399.0,57393.0,0.0001]
[1720815888319,1.15048742,57398.0,57393.0,0.0001]
[1720815888523,1.25048742,57397.0,57393.0,0.0001]
[1720815888785,1.25048742,57397.0,57383.0,0.106]
[1720815888786,0.08511435,57394.0,57383.0,0.1435]
[1720815888912,0.08511435,57394.0,57371.0,0.06]
[1720815888913,0.0655,57392.0,57381.0,0.04952008]
[1720815889123,1.42346642,57391.0,57381.0,0.04952008]
[1720815889324,0.0655,57392.0,57378.0,0.0623]
[1720815889325,1.21948742,57390.0,57378.0,0.0623]
[1720815889527,0.08511435,57387.0,57378.0,0.0623]
[1720815889730,1.84398242,57386.0,57378.0,0.0623]
[1720815890044,1.32141842,57385.0,57383.0,0.001]
[1720815890271,1.15161842,57384.0,57383.0,0.001]
[1720815890473,1.49371842,57384.0,57383.0,0.001]
[1720815890716,1.49371842,57384.0,57373.0,0.0623]
[1720815890922,1.49371842,57384.0,57366.0,0.1]
[1720815890923,0.08511435,57380.0,57366.0,0.0623]
[1720815891133,0.08511435,57380.0,57357.0,0.1]
[1720815891134,0.08511435,57367.0,57357.0,0.1]
[1720815891307,0.08511435,57367.0,57355.0,0.106]
[1720815891308,0.82460781,57366.0,57355.0,0.106]
[1720815891619,0.82460781,57366.0,57346.0,0.06]
[1720815891620,0.28511435,57374.0,57350.0,0.0058184]
[1720815891621,0.13559427,57363.0,57350.0,0.0058184]
[1720815891856,2.06706153,57362.0,57350.0,0.0058184]
[1720815892065,0.08511435,57356.0,57350.0,0.0058184]
[1720815892282,0.05047992,57354.0,57350.0,0.0058184]
[1720815892501,1.48742953,57353.0,57350.0,0.0058184]
[1720815892706,0.43675253,57352.0,57350.0,0.0058184]
[1720815892908,0.61480153,57351.0,57350.0,0.0058184]
[1720815893144,0.60292053,57351.0,57350.0,0.0058184]
[1720815893351,0.60292053,57351.0,57320.0,0.00306353]
[1720815893352,0.05047992,57328.0,57320.0,0.00306353]
[1720815893617,0.2,57336.0,57320.0,0.00306353]
[1720815893618,0.1,57335.0,57322.0,0.04952008]
[1720815893849,0.1,57335.0,57317.0,0.12069178]
[1720815893850,0.08511435,57328.0,57317.0,0.12069178]
[1720815894041,0.49665734,57327.0,57317.0,0.02069178]
[1720815894292,0.06355133,57327.0,57317.0,0.02069178]
[1720815894521,0.353818,57326.0,57319.0,0.04952008]
[1720815894747,0.16355133,57327.0,57325.0,0.0641]
[1720815894960,0.16355133,57327.0,57317.0,0.02069178]
[1720815894961,0.14866568,57326.0,57317.0,0.02069178]
[1720815895164,0.06355133,57325.0,57318.0,0.04952008]
[1720815895364,0.06355133,57325.0,57317.0,0.12069178]
[1720815895574,0.562726,57324.0,57317.0,0.02069178]
[1720815895771,0.1,57326.0,57320.0,0.306]
[1720815895772,0.42039733,57323.0,57320.0,0.306]
[1720815896003,0.42039733,57323.0,57317.0,0.07021186]
[1720815896004,0.0999,57323.0,57322.0,0.35552008]
[1720815896204,0.0999,57323.0,57322.0,0.04952008]
[1720815896427,0.0999,57323.0,57322.0,0.04452008]
[1720815896626,0.0999,57323.0,57322.0,0.45052008]
[1720815896851,0.001,57325.0,57324.0,0.41382008]
[1720815897502,0.001,57325.0,57324.0,0.51382008]
[1720815897903,0.001,57325.0,57324.0,0.20782008]
[1720815898110,0.01380685,57328.0,57320.0,0.1]
[1720815898323,0.001,57323.0,57320.0,0.1]
[1720815898524,0.001,57323.0,57317.0,0.02069178]
[1720815898937,0.023,57327.0,57317.0,0.02069178]
[1720815899144,0.001,57325.0,57319.0,0.306]
[1720815899381,0.001,57325.0,57320.0,0.04452008]
[1720815899382,0.1009,57325.0,57320.0,0.04452008]
[1720815899590,0.0009,57325.0,57320.0,0.35052008]
[1720815899790,0.1,57330.0,57321.0,0.306]
[1720815900000,0.001,57323.0,57322.0,0.306]
[1720815900222,0.001,57323.0,57322.0,0.35052008]
[1720815900438,0.001,57323.0,57322.0,0.45052008]
[1720815900647,0.001,57323.0,57322.0,0.58912008]
[1720815901362,0.001,57323.0,57318.0,0.1]
[1720815901571,0.00124315,57323.0,57318.0,0.1]
[1720815901776,0.00024315,57322.0,57320.0,0.306]
[1720815901981,0.14931435,57342.0,57324.0,0.10452008]
[1720815901982,0.01507997,57325.0,57324.0,0.10452008]
[1720815902189,0.001,57325.0,57323.0,0.04452008]
[1720815902612,0.15547992,57338.0,57324.0,0.00306353]
[1720815902824,0.15547992,57338.0,57324.0,0.00206353]
[1720815902825,1.821422,57337.0,57324.0,0.00206353]
[1720815903038,0.05547992,57332.0,57317.0,0.20311186]
[1720815903290,1.849693,57336.0,57321.0,0.04452008]
[1720815903291,0.538927,57331.0,57321.0,0.04452008]
[1720815903469,0.538927,57331.0,57326.0,0.306]
[1720815903470,0.1,57330.0,57326.0,0.306]
[1720815903706,0.1,57330.0,57317.0,0.15859178]
[1720815903707,0.001,57329.0,57328.0,0.35052008]
[1720815903938,0.001,57329.0,57328.0,0.51052008]
[1720815904143,0.01351964,57342.0,57329.0,0.00206353]
[1720815904345,0.520408,57341.0,57332.0,0.04452008]
[1720815904572,0.274545,57340.0,57333.0,0.00895678]
[1720815904780,0.305325,57339.0,57333.0,0.00895678]
[1720815904979,0.12544592,57347.0,57333.0,0.00895678]
[1720815905189,0.12544592,57347.0,57334.0,0.10206353]
[1720815905190,0.908511,57346.0,57334.0,0.10206353]
[1720815905398,0.165,57345.0,57336.0,0.306]
[1720815905598,0.001,57344.0,57338.0,0.04452008]
[1720815905806,0.001,57344.0,57340.0,0.04452008]
[1720815905997,0.070959,57352.0,57341.0,0.04452008]
[1720815906213,0.070959,57352.0,57341.0,0.05340742]
[1720815906214,0.24736,57352.0,57341.0,0.05340742]
[1720815906349,0.24736,57352.0,57341.0,0.35052008]
[1720815906350,0.219393,57351.0,57341.0,0.35052008]
[1720815906556,0.0634,57355.0,57342.0,0.01094219]
[1720815906557,0.069957,57354.0,57342.0,0.01094219]
[1720815906742,0.069957,57354.0,57345.0,0.04452008]
[1720815906743,0.1618,57354.0,57345.0,0.04452008]
[1720815907141,0.1618,57354.0,57346.0,0.01090748]
[1720815907363,0.05547992,57348.0,57346.0,0.01090748]
[1720815907562,0.611047,57347.0,57346.0,0.00884395]
[1720815907793,0.275212,57347.0,57340.0,0.04452008]
[1720815908001,0.275212,57347.0,57333.0,0.00206353]
[1720815908002,0.05547992,57339.0,57324.0,0.1]
[1720815908214,0.05547992,57339.0,57325.0,0.00206353]
[1720815908215,0.53959,57338.0,57325.0,0.00206353]
[1720815908497,0.001,57336.0,57333.0,0.000913]
[1720815908651,0.102,57335.0,57333.0,0.000913]
[1720815908847,0.123,57334.0,57333.0,0.000913]
[1720815909873,0.1,57334.0,57333.0,0.04543308]
[1720815910068,0.001,57345.0,57341.0,0.306]
[1720815910297,0.001,57345.0,57340.0,0.00206353]
[1720815910508,0.01379422,57345.0,57344.0,0.04452008]
[1720815910701,0.1,57354.0,57345.0,0.00206353]
[1720815910903,0.161952,57354.0,57345.0,0.00206353]
[1720815911103,0.330353,57358.0,57345.0,0.00206353]
[1720815911496,0.1443114,57358.0,57346.0,0.04452008]
[1720815911703,0.0839114,57358.0,57352.0,0.04452008]
[1720815911908,0.0839114,57358.0,57355.0,0.04452008]
[1720815912114,0.0139584,57358.0,57356.0,0.00206353]
[1720815912340,0.0139584,57358.0,57357.0,0.04452008]
[1720815912559,0.069938,57369.0,57357.0,0.04658361]
[1720815912759,1.661166,57368.0,57357.0,0.00206353]
[1720815912937,0.01362573,57369.0,57356.0,0.12452008]
[1720815912938,1.049338,57367.0,57356.0,0.12452008]
[1720815913164,0.565212,57366.0,57356.0,0.12452008]
[1720815913367,0.565212,57366.0,57357.0,0.00206353]
[1720815913586,0.001,57365.0,57357.0,0.00206353]
[1720815913793,0.257224,57364.0,57357.0,0.00206353]
[1720815913996,0.069939,57369.0,57361.0,0.04452008]
[1720815914144,0.069939,57369.0,57362.0,0.00206353]
[1720815914349,0.01355537,57370.0,57362.0,0.00206353]
[1720815914550,0.1,57375.0,57362.0,0.00206353]
[1720815914756,0.069935,57373.0,57362.0,0.00206353]
[1720815914919,0.069935,57373.0,57361.0,0.04452008]
[1720815914920,1.448175,57372.0,57361.0,0.04452008]
[1720815915127,0.99527,57371.0,57361.0,0.04452008]
[1720815915362,0.169935,57373.0,57362.0,0.01228973]
[1720815915363,0.606191,57370.0,57362.0,0.01228973]
[1720815915574,0.804284,57369.0,57362.0,0.01228973]
[1720815915775,0.376684,57368.0,57362.0,0.01228973]
[1720815915993,0.001,57368.0,57362.0,0.01228973]
[1720815916528,0.1,57369.0,57363.0,0.00206353]
[1720815916732,0.100894,57368.0,57363.0,0.04658361]
[1720815916935,0.100894,57368.0,57364.0,0.01226371]
[1720815916936,0.1,57367.0,57364.0,0.01226371]
[1720815917334,0.25547992,57365.0,57364.0,0.00126372]
[1720815917545,4.01694692,57365.0,57364.0,0.0122507]
[1720815917763,4.01694692,57365.0,57364.0,0.01098698]
[1720815917764,4.05354338,57365.0,57364.0,0.01098698]
[1720815917967,4.05354338,57365.0,57335.0,0.04452008]
[1720815917968,0.05547992,57350.0,57335.0,0.04452008]
[1720815918174,0.2626,57359.0,57346.0,0.51068611]
[1720815918175,0.2642,57352.0,57346.0,0.51068611]
[1720815918375,0.2642,57352.0,57339.0,0.04452008]
[1720815918376,0.87079257,57351.0,57339.0,0.04452008]
[1720815918602,0.87079257,57351.0,57348.0,0.04452008]
[1720815918603,0.03606857,57350.0,57348.0,0.04452008]
[1720815918807,0.1,57351.0,57348.0,0.04452008]
[1720815919012,0.0999,57351.0,57348.0,0.04452008]
[1720815919423,0.0626,57359.0,57348.0,0.04452008]
[1720815919641,1.24056347,57358.0,57348.0,0.04452008]
[1720815919852,0.40056847,57357.0,57348.0,0.35052008]
[1720815920057,0.03670947,57356.0,57355.0,0.06]
[1720815920259,0.001,57366.0,57356.0,0.04452008]
[1720815920460,0.001,57366.0,57348.0,0.0783]
[1720815920461,0.08511435,57360.0,57348.0,0.0783]
[1720815920665,1.03233394,57359.0,57351.0,0.04452008]
[1720815920865,0.001,57359.0,57355.0,0.06]
[1720815921075,0.001,57359.0,57356.0,0.06]
[1720815921280,0.001,57365.0,57355.0,0.06]
[1720815921483,0.03652487,57364.0,57357.0,0.306]
[1720815921622,0.30082887,57363.0,57357.0,0.306]
[1720815921830,0.30082887,57363.0,57357.0,0.106]
[1720815921831,0.13652487,57362.0,57357.0,0.106]
[1720815922104,0.1,57361.0,57360.0,0.35052008]
[1720815922299,0.1,57364.0,57360.0,0.35052008]
[1720815922300,0.1,57364.0,57363.0,0.04452008]
[1720815922535,0.1,57364.0,57363.0,0.15052008]
[1720815922725,0.01373655,57368.0,57367.0,0.35052008]
[1720815923013,0.2642,57385.0,57364.0,0.1]
[1720815923014,0.069924,57380.0,57373.0,0.04452008]
[1720815923225,1.14790141,57379.0,57366.0,0.04452008]
[1720815923385,1.86178676,57378.0,57367.0,0.00206353]
[1720815923594,0.001,57376.0,57367.0,0.00206353]
[1720815923799,0.001,57376.0,57366.0,0.15052008]
[1720815923800,0.65649141,57375.0,57366.0,0.15052008]
[1720815924135,0.08511435,57378.0,57366.0,0.35052008]
[1720815924136,0.001,57373.0,57366.0,0.35052008]
[1720815924578,0.001,57377.0,57376.0,0.04452008]
[1720815924980,0.069919,57384.0,57377.0,0.04658361]
[1720815925181,0.9021017,57383.0,57377.0,0.04658361]
[1720815925404,0.001,57390.0,57374.0,0.04452008]
[1720815925405,0.719304,57382.0,57374.0,0.04452008]
[1720815925610,1.187894,57381.0,57373.0,0.04452008]
[1720815925809,0.001,57380.0,57373.0,0.04452008]
[1720815926030,1.17273,57380.0,57373.0,0.04452008]
[1720815926234,0.001,57380.0,57373.0,0.04452008]
[1720815926439,0.17177,57379.0,57374.0,0.00206353]
[1720815926656,0.1,57378.0,57374.0,0.00206353]
[1720815926872,0.1,57378.0,57376.0,0.04452008]
[1720815927070,0.1,57378.0,57377.0,0.15258361]
[1720815927479,0.1,57378.0,57377.0,0.15052008]
[1720815927684,0.069917,57389.0,57378.0,0.04452008]
[1720815927894,0.94926867,57388.0,57378.0,0.04452008]
[1720815928124,1.25302567,57387.0,57378.0,0.04452008]
[1720815928328,1.11722767,57386.0,57378.0,0.04452008]
[1720815928513,1.072545,57385.0,57378.0,0.04452008]
[1720815928779,1.072545,57385.0,57379.0,0.04452008]
[1720815928780,0.001,57384.0,57379.0,0.04452008]
[1720815928977,0.001,57384.0,57383.0,0.15052008]
[1720815929182,0.069909,57393.0,57384.0,0.15258361]
[1720815929356,0.03624035,57392.0,57384.0,0.04658361]
[1720815929563,0.989785,57391.0,57384.0,0.15052008]
[1720815929776,0.001,57391.0,57384.0,0.04452008]
[1720815929986,0.111846,57390.0,57385.0,0.00206353]
[1720815930190,0.069909,57393.0,57385.0,0.04658361]
[1720815930395,0.1,57389.0,57385.0,0.04658361]
[1720815930594,0.1,57391.0,57385.0,0.04658361]
[1720815930824,0.001,57398.0,57386.0,0.04452008]
[1720815931006,0.069905,57396.0,57387.0,0.00206353]
[1720815931241,0.593976,57395.0,57391.0,0.04452008]
[1720815931445,1.056263,57394.0,57391.0,0.04452008]
[1720815931651,0.314235,57393.0,57391.0,0.04452008]
[1720815931868,0.1,57392.0,57391.0,0.04452008]
[1720815932082,0.001,57393.0,57391.0,0.04452008]
[1720815932289,0.1,57394.0,57391.0,0.04452008]
[1720815932489,0.1,57394.0,57392.0,0.00206353]
[1720815932696,0.168087,57393.0,57392.0,0.00206353]
[1720815932897,0.1,57393.0,57392.0,0.00206353]
[1720815933455,0.1,57393.0,57392.0,0.04452008]
[1720815933916,0.01359453,57400.0,57398.0,0.11002008]
[1720815934127,0.01359453,57400.0,57399.0,0.00206353]
[1720815934285,0.00083,57408.0,57399.0,0.00206353]
[1720815934486,0.00083,57408.0,57397.0,0.04452008]
[1720815934487,1.77108883,57407.0,57397.0,0.04452008]
[1720815934747,0.00083,57408.0,57397.0,0.04452008]
[1720815934748,1.12373483,57406.0,57397.0,0.04452008]
[1720815934952,0.98096783,57405.0,57398.0,0.04452008]
[1720815935155,0.44280724,57404.0,57398.0,0.04452008]
[1720815935329,0.50773024,57403.0,57398.0,0.04452008]
[1720815935542,0.38133024,57402.0,57398.0,0.04452008]
[1720815935754,0.27964261,57401.0,57398.0,0.04452008]
[1720815935948,0.34451,57400.0,57398.0,0.04452008]
[1720815936152,0.34451,57400.0,57399.0,0.35052008]
[1720815936153,0.101,57400.0,57399.0,0.35052008]
[1720815936350,0.101,57400.0,57393.0,0.1629]
[1720815936351,0.01491874,57408.0,57405.0,0.04452008]
[1720815936528,0.01491874,57408.0,57407.0,0.04452008]
[1720815936735,0.01491874,57408.0,57401.0,0.04452008]
[1720815936736,0.416683,57407.0,57401.0,0.04452008]
[1720815936931,0.001,57406.0,57401.0,0.04452008]
[1720815937137,0.586113,57405.0,57401.0,0.04452008]
[1720815937333,0.001,57404.0,57401.0,0.04452008]
[1720815937559,0.211699,57403.0,57401.0,0.04452008]
[1720815937765,0.1,57402.0,57401.0,0.04452008]
[1720815938181,0.01491874,57408.0,57401.0,0.04452008]
[1720815938382,0.744642,57407.0,57401.0,0.04452008]
[1720815938609,0.101,57406.0,57401.0,0.04452008]
[1720815938812,0.525333,57405.0,57401.0,0.04452008]
[1720815938965,0.101,57404.0,57401.0,0.04452008]
[1720815939342,0.208354,57403.0,57399.0,0.04452008]
[1720815939545,0.101,57402.0,57390.0,0.0808]
[1720815939723,0.726766,57401.0,57392.0,0.04452008]
[1720815940031,0.796541,57400.0,57392.0,0.04442008]
[1720815940335,0.81914535,57399.0,57389.0,0.04442008]
[1720815940532,1.479016,57398.0,57388.0,0.04442008]
[1720815940733,1.479016,57398.0,57389.0,0.04442008]
[1720815940734,0.431946,57397.0,57389.0,0.04442008]
[1720815940935,0.2814351,57396.0,57393.0,0.04442008]
[1720815941073,0.101,57396.0,57393.0,0.04442008]
[1720815941286,0.1,57396.0,57393.0,0.04442008]
[1720815941684,0.18635341,57395.0,57393.0,0.04442008]
[1720815941892,0.1,57394.0,57393.0,0.19152008]
[1720815942095,0.1773651,57394.0,57388.0,0.04442008]
[1720815942293,0.584676,57393.0,57388.0,0.04442008]
[1720815942538,0.453976,57392.0,57389.0,0.04442008]
[1720815942744,0.244536,57391.0,57389.0,0.04442008]
[1720815942952,0.1,57390.0,57389.0,0.04442008]
[1720815943315,0.1,57390.0,57387.0,0.0001]
[1720815943560,0.03653944,57389.0,57381.0,0.0753]
[1720815943693,0.03653944,57389.0,57380.0,0.03121645]
[1720815943694,0.06053944,57388.0,57380.0,0.03121645]
[1720815943904,0.98357744,57387.0,57380.0,0.03121645]
[1720815944100,0.75240644,57386.0,57380.0,0.03121645]
[1720815944491,0.28520644,57385.0,57380.0,0.03121645]
[1720815944602,0.03753944,57384.0,57380.0,0.33721645]
[1720815944824,0.001,57384.0,57383.0,0.03121645]
[1720815945033,0.1,57388.0,57385.0,0.03121645]
[1720815945236,0.21363195,57387.0,57385.0,0.03121645]
[1720815945478,0.13852195,57386.0,57385.0,0.03121645]
[1720815945858,0.13752195,57386.0,57385.0,0.03121645]
[1720815946475,0.03752195,57386.0,57385.0,0.03121645]
[1720815946657,0.13752195,57386.0,57385.0,0.03121645]
[1720815947706,0.03752195,57386.0,57385.0,0.03121645]
[1720815947882,0.03752195,57386.0,57385.0,0.41731645]
[1720815948265,0.01407921,57389.0,57388.0,0.33721645]
[1720815948460,0.03684606,57389.0,57388.0,0.33721645]
[1720815948683,0.0009,57404.0,57392.0,0.03121645]
[1720815948888,2.52838583,57403.0,57388.0,0.03121645]
[1720815949130,0.08511435,57401.0,57386.0,0.03121645]
[1720815949333,1.88747183,57400.0,57388.0,0.03121645]
[1720815949491,1.89773483,57399.0,57388.0,0.03121645]
[1720815949692,0.82865683,57398.0,57388.0,0.13721645]
[1720815949895,0.88094183,57397.0,57388.0,0.03121645]
[1720815950094,0.67192683,57396.0,57388.0,0.03121645]
[1720815950343,0.42507983,57395.0,57392.0,0.03121645]
[1720815950542,0.45107983,57394.0,57392.0,0.03121645]
[1720815950744,0.28037983,57393.0,57392.0,0.03121645]
[1720815950925,0.31057983,57393.0,57392.0,0.03121645]
[1720815951568,0.31041804,57393.0,57392.0,0.03121645]
[1720815952109,0.13668504,57393.0,57392.0,0.03121645]
[1720815952360,0.03668504,57393.0,57392.0,0.03121645]
[1720815952585,0.21359662,57405.0,57392.0,0.03121645]
[1720815952812,1.679935,57404.0,57392.0,0.03121645]
[1720815952993,1.679935,57404.0,57393.0,0.09671645]
[1720815952994,1.157405,57403.0,57393.0,0.09671645]
[1720815953193,0.348419,57402.0,57398.0,0.03121645]
[1720815953514,0.17371,57401.0,57398.0,0.03121645]
[1720815953765,0.00083,57406.0,57398.0,0.03121645]
[1720815953766,0.328793,57405.0,57398.0,0.03121645]
[1720815954736,0.1,57404.0,57398.0,0.03121645]
[1720815954954,0.31841,57403.0,57398.0,0.03121645]
[1720815955145,0.1,57402.0,57398.0,0.03121645]
[1720815955354,0.622983,57401.0,57398.0,0.03121645]
[1720815955528,0.1,57400.0,57398.0,0.03121645]
[1720815955744,0.372083,57400.0,57398.0,0.03121645]
[1720815955946,0.1,57400.0,57398.0,0.03121645]